bitfinex-derivatives/quotes_BTCF0:USTF0_20250101
["timestamp","ask_amount","ask_price","bid_price","bid_amount"]
[1735723909818,0.07191383,93235.0,93233.0,0.053728]
[1735723910326,0.07191383,93235.0,93233.0,0.05365623]
[1735723911018,0.01691383,93235.0,93233.0,0.05365623]
[1735723911205,0.0517,93243.0,93233.0,0.05365623]
[1735723911411,0.07038116,93243.0,93242.0,0.053723]
[1735723912120,0.72982086,93244.0,93242.0,0.053723]
[1735723912323,0.001,93243.0,93242.0,0.053723]
[1735723912619,0.001,93243.0,93242.0,1.553723]
[1735723912925,0.20399703,93243.0,93242.0,1.554723]
[1735723913615,0.18543984,93243.0,93242.0,1.554723]
[1735723914019,0.19243471,93250.0,93249.0,0.053719]
[1735723914314,0.32020702,93255.0,93254.0,0.053716]
[1735723915222,0.32020702,93255.0,93254.0,1.553716]
[1735723915720,0.33981982,93255.0,93254.0,1.915516]
[1735723915918,0.32120702,93255.0,93254.0,1.915516]
[1735723916224,0.32120702,93255.0,93254.0,2.276316]
[1735723916518,0.001,93255.0,93254.0,2.276316]
[1735723917021,0.0517,93276.0,93273.0,0.053706]
[1735723918125,0.06847625,93276.0,93274.0,0.053708]
[1735723919220,0.06847625,93276.0,93274.0,0.054708]
[1735723919825,0.06847625,93276.0,93274.0,0.055708]
[1735723922125,0.06847625,93276.0,93274.0,0.002]
[1735723922315,0.06847625,93276.0,93241.0,0.3608]
[1735723922316,0.06847625,93276.0,93259.0,0.053716]
[1735723922511,0.3608,93260.0,93259.0,0.053716]
[1735723923328,0.06847625,93276.0,93266.0,0.053713]
[1735723923329,0.3608,93273.0,93266.0,0.053713]
[1735723923530,0.3608,93273.0,93267.0,0.053712]
[1735723923719,0.3608,93273.0,93263.0,0.11103005]
[1735723923917,0.3608,93273.0,93270.0,0.05371]
[1735723924118,0.3608,93273.0,93271.0,0.05371]
[1735723924324,0.06847625,93276.0,93275.0,0.053708]
[1735723925825,0.06847625,93276.0,93275.0,0.054708]
[1735723927029,0.07047625,93276.0,93275.0,0.055708]
[1735723927226,0.002,93276.0,93275.0,0.055708]
[1735723927621,0.002,93276.0,93275.0,0.416508]
[1735723927931,0.002,93276.0,93275.0,1.916508]
[1735723930626,0.0533,93286.0,93285.0,0.053702]
[1735723930827,0.07043168,93286.0,93285.0,0.053702]
[1735723932134,0.07043168,93286.0,93285.0,0.054702]
[1735723932734,0.07143168,93286.0,93285.0,0.055702]
[1735723932930,0.01813168,93286.0,93285.0,0.055702]
[1735723934736,0.001,93286.0,93285.0,0.416502]
[1735723935529,0.001,93286.0,93285.0,1.916502]
[1735723935729,0.001,93286.0,93285.0,1.915502]
[1735723937652,0.053,93297.0,93296.0,0.053695]
[1735723939050,0.053,93297.0,93296.0,1.553695]
[1735723939353,0.054,93297.0,93296.0,1.555695]
[1735723939744,0.00998249,93307.0,93306.0,0.05369]
[1735723941352,0.02592304,93307.0,93306.0,0.05369]
[1735723941748,0.02592304,93307.0,93306.0,0.05469]
[1735723941950,0.02592304,93307.0,93306.0,0.05569]
[1735723943353,0.01594055,93307.0,93306.0,0.05569]
[1735723943545,0.1078,93323.0,93306.0,0.05569]
[1735723943748,0.1078,93323.0,93319.0,0.053682]
[1735723943947,0.01757313,93321.0,93320.0,1.5]
[1735723944141,0.00160801,93321.0,93320.0,1.5]
[1735723944346,0.00160801,93321.0,93319.0,0.053682]
[1735723944956,0.3608,93332.0,93331.0,0.053675]
[1735723948157,0.37650841,93332.0,93331.0,0.053675]
[1735723949458,0.01570841,93332.0,93331.0,0.053675]
[1735723949760,0.3608,93342.0,93322.0,0.11103005]
[1735723950056,0.3608,93324.0,93311.0,0.053687]
[1735723950259,0.053682,93320.0,93305.0,0.05369]
[1735723950459,0.053682,93320.0,93300.0,0.47343752]
[1735723950460,0.053682,93320.0,93310.0,0.11103005]
[1735723950658,0.3608,93316.0,93307.0,0.053689]
[1735723950860,0.3608,93316.0,93310.0,0.11103005]
[1735723951059,0.3608,93316.0,93304.0,0.19231442]
[1735723951256,0.3608,93316.0,93306.0,0.11103005]
[1735723951448,0.3608,93307.0,93306.0,0.16472005]
[1735723951655,0.3608,93307.0,93306.0,0.05369]
[1735723952562,0.3608,93307.0,93306.0,0.05469]
[1735723954063,0.3628,93307.0,93306.0,0.05469]
[1735723954265,0.3628,93307.0,93306.0,0.05369]
[1735723954266,0.3678,93307.0,93306.0,0.05369]
[1735723955256,0.3628,93307.0,93306.0,0.05369]
[1735723955462,0.3678,93307.0,93306.0,1.55369]
[1735723955663,0.007,93307.0,93306.0,1.55369]
[1735723956066,0.002,93307.0,93306.0,1.55369]
[1735723956265,0.005,93307.0,93306.0,1.55369]
[1735723957067,0.003,93307.0,93306.0,1.55369]
[1735723957269,0.004,93307.0,93306.0,1.55369]
[1735723957854,0.001,93307.0,93306.0,1.55369]
[1735723958059,0.3608,93328.0,93327.0,0.053678]
[1735723959567,0.3608,93328.0,93327.0,1.553678]
[1735723960668,0.3628,93328.0,93327.0,1.553678]
[1735723962377,0.3628,93328.0,93327.0,0.053678]
[1735723963566,0.3618,93328.0,93327.0,0.053678]
[1735723963769,0.3628,93328.0,93327.0,0.053678]
[1735723963965,0.3618,93328.0,93327.0,0.053678]
[1735723964167,0.3628,93328.0,93327.0,0.053678]
[1735723964671,0.3618,93328.0,93327.0,0.053678]
[1735723965171,0.3618,93328.0,93313.0,0.47183005]
[1735723965372,0.3618,93328.0,93322.0,0.05368]
[1735723965873,0.3618,93328.0,93325.0,0.053678]
[1735723966173,0.3618,93328.0,93326.0,0.053678]
[1735723967169,0.3608,93328.0,93326.0,0.053678]
[1735723967667,0.3618,93328.0,93326.0,0.053678]
[1735723968069,0.3628,93328.0,93326.0,0.053678]
[1735723973772,0.3628,93328.0,93319.0,0.053681]
[1735723974779,0.3608,93328.0,93319.0,0.053681]
[1735723974975,0.3618,93328.0,93319.0,0.053681]
[1735723975176,0.3608,93320.0,93319.0,0.053681]
[1735723976593,0.3608,93320.0,93319.0,0.054681]
[1735723977083,0.3608,93320.0,93319.0,0.053681]
[1735723977274,0.3618,93320.0,93319.0,0.054681]
[1735723977682,0.3628,93320.0,93319.0,0.054681]
[1735723978274,0.3628,93320.0,93319.0,0.053681]
[1735723980388,0.3618,93320.0,93319.0,0.053681]
[1735723980584,0.3628,93320.0,93319.0,0.053681]
[1735723981091,0.47519499,93320.0,93319.0,0.053681]
[1735723981288,0.47619499,93320.0,93319.0,0.053681]
[1735723982380,0.37733577,93320.0,93319.0,0.053681]
[1735723985193,0.37738507,93320.0,93319.0,0.053681]
[1735723986891,0.37638507,93320.0,93319.0,0.053681]
[1735723987195,0.37738507,93320.0,93319.0,0.053681]
[1735723987900,0.37738507,93320.0,93308.0,0.3608]
[1735723987901,0.396402,93320.0,93308.0,0.3608]
[1735723988194,0.01901921,93319.0,93308.0,0.3608]
[1735723988395,0.01901921,93319.0,93310.0,0.053687]
[1735723988693,0.01901921,93319.0,93317.0,0.053682]
[1735723988893,0.01901921,93319.0,93318.0,0.053682]
[1735723989082,0.01901528,93319.0,93318.0,0.053682]
[1735723989490,0.053685,93314.0,93308.0,0.001]
[1735723989791,0.3608,93309.0,93308.0,0.001]
[1735723989982,0.37981528,93309.0,93308.0,0.001]
[1735723990688,0.37981528,93309.0,93307.0,0.00160746]
[1735723990898,0.3608,93309.0,93308.0,0.001]
[1735723992793,0.3618,93309.0,93307.0,0.00160746]
[1735723993000,0.3618,93309.0,93308.0,0.053688]
[1735723993189,0.001,93309.0,93308.0,0.053688]
[1735723993614,0.001,93309.0,93308.0,0.112088]
[1735723993893,0.0627,93318.0,93308.0,1.5584]
[1735723994198,0.37538507,93320.0,93316.0,0.053683]
[1735723994393,0.37538507,93320.0,93317.0,0.053682]
[1735723994591,0.01887917,93319.0,93317.0,0.053682]
[1735723995095,0.01887917,93319.0,93308.0,0.0584]
[1735723995294,0.01887917,93319.0,93313.0,0.053685]
[1735723995902,0.053682,93318.0,93308.0,0.0584]
[1735723996201,0.053682,93318.0,93307.0,0.00160746]
[1735723996500,0.37638507,93320.0,93313.0,0.053685]
[1735723996700,0.37638507,93320.0,93315.0,0.053684]
[1735723996891,0.001,93319.0,93315.0,0.053684]
[1735723997296,0.37538507,93320.0,93315.0,0.053684]
[1735723998191,0.001,93319.0,93315.0,0.053684]
[1735723998502,0.001,93319.0,93318.0,0.053682]
[1735723999605,0.002,93319.0,93318.0,0.053682]
[1735723999800,0.001,93319.0,93318.0,0.053682]
[1735723999996,0.001,93319.0,93312.0,0.053685]
[1735724000195,0.001,93319.0,93307.0,0.05529646]
[1735724000497,0.01991361,93319.0,93307.0,0.05529646]
[1735724000706,0.02091361,93319.0,93307.0,0.05529646]
[1735724000892,0.053682,93318.0,93307.0,0.05529646]
[1735724001100,0.07259561,93318.0,93307.0,0.05529646]
[1735724001409,0.37538507,93320.0,93309.0,0.053687]
[1735724002401,0.37538507,93320.0,93312.0,0.053685]
[1735724002994,0.053685,93314.0,93307.0,0.001]
[1735724003195,0.3608,93308.0,93301.0,0.3608]
[1735724003401,0.3608,93308.0,93307.0,0.001]
[1735724003805,0.3608,93308.0,93291.0,0.3608]
[1735724003806,0.3608,93308.0,93301.0,0.053692]
[1735724004105,0.3608,93308.0,93290.0,0.11263774]
[1735724004306,0.3608,93308.0,93296.0,0.053695]
[1735724005197,0.3608,93308.0,93297.0,0.053694]
[1735724005906,0.01887716,93307.0,93297.0,0.053694]
[1735724006094,0.01887716,93307.0,93301.0,0.002]
[1735724006606,0.01887716,93307.0,93298.0,0.053694]
[1735724006607,0.09887639,93306.0,93298.0,0.053694]
[1735724006800,0.01887716,93305.0,93298.0,0.053694]
[1735724007197,0.09887639,93306.0,93301.0,0.055692]
[1735724007398,0.09887639,93304.0,93301.0,0.055692]
[1735724008409,0.3608,93308.0,93301.0,0.055692]
[1735724008911,0.3608,93308.0,93301.0,0.053692]
[1735724009298,0.3608,93308.0,93301.0,0.054692]
[1735724009498,0.3608,93308.0,93307.0,0.053689]
[1735724009706,0.01387861,93308.0,93307.0,0.053689]
[1735724009896,0.1187,93313.0,93309.0,0.053687]
[1735724010093,0.3608493,93320.0,93309.0,0.053687]
[1735724011406,0.3608493,93320.0,93310.0,0.053687]
[1735724012110,0.3608493,93320.0,93311.0,0.053686]
[1735724012316,0.0649,93318.0,93311.0,0.053686]
[1735724012613,0.0649,93318.0,93312.0,0.053686]
[1735724013303,0.01471905,93318.0,93308.0,0.11103005]
[1735724013509,0.01471905,93318.0,93316.0,0.053683]
[1735724013908,0.01571905,93318.0,93316.0,0.053683]
[1735724016206,0.01571905,93318.0,93304.0,0.3608]
[1735724016407,0.01571905,93318.0,93310.0,0.053687]
[1735724016617,0.1257,93317.0,93310.0,0.053687]
[1735724016808,0.3608,93312.0,93310.0,0.053687]
[1735724017009,0.01894928,93311.0,93310.0,0.053687]
[1735724017722,0.3608,93312.0,93310.0,0.053687]
[1735724018211,0.09886766,93311.0,93310.0,0.053687]
[1735724019113,0.3618,93312.0,93310.0,0.053687]
[1735724019312,0.3618,93312.0,93304.0,0.05469]
[1735724019517,0.3618,93312.0,93305.0,0.053689]
[1735724019710,0.3618,93312.0,93301.0,0.3608]
[1735724020117,0.3618,93312.0,93310.0,0.053686]
[1735724020618,0.001,93311.0,93304.0,0.001]
[1735724021010,0.3608,93312.0,93304.0,0.001]
[1735724021220,0.3608,93312.0,93301.0,0.3638]
[1735724021613,0.3608,93312.0,93301.0,0.3608]
[1735724021920,0.3608,93312.0,93308.0,0.053688]
[1735724023323,0.3608,93312.0,93310.0,0.053687]
[1735724024322,0.01371905,93318.0,93317.0,0.053683]
[1735724024519,0.35310761,93319.0,93317.0,0.053683]
[1735724024913,0.35310761,93319.0,93318.0,0.0626]
[1735724025416,0.36662705,93319.0,93318.0,0.0626]
[1735724025611,0.01351944,93319.0,93318.0,0.0626]
[1735724025812,0.3608493,93320.0,93318.0,0.0626]
[1735724026012,0.3608493,93320.0,93319.0,0.053682]
[1735724026514,0.3608493,93320.0,93319.0,0.118182]
[1735724027716,0.3618493,93320.0,93319.0,0.118182]
[1735724027922,0.3628493,93320.0,93319.0,0.118182]
[1735724032327,0.3618493,93320.0,93319.0,0.120182]
[1735724032917,0.3608493,93320.0,93319.0,0.120182]
[1735724033122,0.3608493,93320.0,93319.0,0.121182]
[1735724033729,0.3608493,93320.0,93319.0,0.120182]
[1735724033930,0.3608493,93320.0,93319.0,0.121182]
[1735724034519,0.3608493,93320.0,93319.0,0.120182]
[1735724034721,0.3608,93338.0,93319.0,0.541482]
[1735724034925,0.3608,93338.0,93328.0,0.11103005]
[1735724035128,0.00160741,93339.0,93338.0,0.05367]
[1735724035928,0.20634027,93347.0,93338.0,0.05367]
[1735724036126,0.20634027,93347.0,93346.0,0.053666]
[1735724037125,0.21977099,93347.0,93346.0,0.053666]
[1735724037324,0.22077099,93347.0,93346.0,0.053666]
[1735724038326,0.22177099,93347.0,93346.0,0.053666]
[1735724038830,0.22077099,93347.0,93346.0,0.053666]
[1735724039134,0.22177099,93347.0,93346.0,0.053666]
[1735724039333,0.22077099,93347.0,93346.0,0.053666]
[1735724040936,0.23869785,93347.0,93346.0,0.053666]
[1735724041130,0.21977099,93347.0,93346.0,0.053666]
[1735724044440,0.20634027,93347.0,93346.0,0.053666]
[1735724044645,0.3608,93357.0,93356.0,0.05366]
[1735724045733,0.37427942,93357.0,93356.0,0.05366]
[1735724050941,0.37427942,93357.0,93338.0,0.0602]
[1735724051141,0.37427942,93357.0,93348.0,0.053664]
[1735724051742,0.01877637,93356.0,93348.0,0.053664]
[1735724052947,0.01877637,93356.0,93340.0,0.11103005]
[1735724053143,0.01880527,93356.0,93346.0,0.11103005]
[1735724053937,0.01880527,93356.0,93351.0,0.053663]
[1735724054243,0.01880527,93356.0,93355.0,0.053661]
[1735724054647,0.11763067,93356.0,93355.0,0.053661]
[1735724054843,0.11763067,93356.0,93340.0,0.11103005]
[1735724055047,0.0988254,93356.0,93348.0,0.053664]
[1735724055246,0.01881378,93355.0,93340.0,0.11103005]
[1735724055445,0.01881378,93355.0,93348.0,0.053665]
[1735724055849,0.3608,93349.0,93335.0,0.053672]
[1735724056052,0.3608,93340.0,93327.0,0.00160699]
[1735724056347,0.1271,93339.0,93330.0,0.053675]
[1735724056554,0.01887262,93338.0,93330.0,0.053675]
[1735724056751,0.01887262,93338.0,93327.0,0.00160699]
[1735724056947,0.01887262,93338.0,93331.0,0.053674]
[1735724057347,0.01887262,93338.0,93332.0,0.053674]
[1735724057853,0.09884501,93337.0,93335.0,0.002]
[1735724058153,0.01887262,93336.0,93335.0,0.002]
[1735724058542,0.01887262,93336.0,93331.0,0.007]
[1735724058742,0.11771763,93336.0,93332.0,0.01]
[1735724058943,0.01887262,93335.0,93332.0,0.01]
[1735724059153,0.01887262,93335.0,93327.0,0.00160699]
[1735724060054,0.09884501,93334.0,93327.0,0.00160699]
[1735724060251,0.01887262,93333.0,93327.0,0.00160699]
[1735724060551,0.01387262,93333.0,93327.0,0.00160699]
[1735724060952,0.01387262,93333.0,93327.0,0.01060699]
[1735724061158,0.09884501,93332.0,93327.0,0.01060699]
[1735724061750,0.3608,93331.0,93327.0,0.01060699]
[1735724061951,0.3608,93331.0,93327.0,0.003]
[1735724062250,0.064,93330.0,93320.0,0.05368]
[1735724062849,0.064,93330.0,93327.0,0.003]
[1735724063057,0.117673,93330.0,93327.0,0.003]
[1735724063251,0.053677,93324.0,93311.0,0.3608]
[1735724063452,0.3608,93320.0,93311.0,0.3608]
[1735724063656,0.1265,93319.0,93311.0,0.3608]
[1735724064544,0.1245,93319.0,93311.0,0.3608]
[1735724064951,0.1305,93319.0,93311.0,0.3608]
[1735724065459,0.1325,93319.0,93311.0,0.3608]
[1735724065952,0.1305,93319.0,93311.0,0.3608]
[1735724066155,0.053683,93318.0,93311.0,0.3608]
[1735724066355,0.1325,93319.0,93303.0,0.414491]
[1735724066356,0.053684,93317.0,93303.0,0.414491]
[1735724066652,0.053684,93316.0,93303.0,0.414491]
[1735724066860,0.1315,93319.0,93303.0,0.053691]
[1735724067054,0.3608,93311.0,93298.0,0.053694]
[1735724067354,0.0619,93310.0,93298.0,0.053694]
[1735724067556,0.115588,93310.0,93298.0,0.053694]
[1735724068059,0.115588,93310.0,93289.0,0.3608]
[1735724068060,0.053693,93301.0,93289.0,0.3608]
[1735724068262,0.053693,93300.0,93289.0,0.3608]
[1735724068555,0.179993,93300.0,93289.0,0.3608]
[1735724068760,0.053695,93297.0,93289.0,0.3608]
[1735724069254,0.053695,93297.0,93289.0,0.3628]
[1735724070550,0.001,93297.0,93289.0,0.3628]
[1735724070754,0.3608,93293.0,93271.0,0.0632]
[1735724070954,0.053701,93286.0,93268.0,0.3608]
[1735724071257,0.053701,93286.0,93275.0,0.414507]
[1735724071453,0.053701,93286.0,93276.0,0.053707]
[1735724071659,0.051701,93286.0,93276.0,0.053707]
[1735724073150,0.053701,93286.0,93276.0,0.053707]
[1735724073656,0.003,93286.0,93276.0,0.053707]
[1735724074253,0.002,93286.0,93276.0,0.053707]
[1735724074952,0.055701,93286.0,93271.0,0.05371]
[1735724075148,0.055701,93286.0,93272.0,0.053709]
[1735724075353,0.055701,93286.0,93270.0,0.11103005]
[1735724075557,0.055701,93286.0,93274.0,0.053708]
[1735724075759,0.002,93286.0,93270.0,0.11103005]
[1735724075963,0.002,93286.0,93277.0,0.053706]
[1735724076668,0.003,93286.0,93277.0,0.053706]
[1735724078263,0.002,93286.0,93277.0,0.053706]
[1735724078871,0.01446143,93286.0,93277.0,0.053706]
[1735724079066,0.01546143,93286.0,93277.0,0.053706]
[1735724083678,0.01546143,93286.0,93268.0,0.3608]
[1735724083870,0.053704,93281.0,93269.0,0.053711]
[1735724084965,0.053705,93279.0,93268.0,0.3618]
[1735724085666,0.053705,93279.0,93268.0,0.3608]
[1735724085868,0.053703,93284.0,93268.0,0.3608]
[1735724086057,0.053706,93278.0,93268.0,0.3608]
[1735724087359,0.053706,93277.0,93268.0,0.3608]
[1735724087769,0.053707,93276.0,93268.0,0.3608]
[1735724087970,0.053707,93276.0,93268.0,0.3618]
[1735724089265,0.053707,93276.0,93268.0,0.3608]
[1735724090561,0.053707,93276.0,93265.0,0.0646]
[1735724090756,0.053703,93283.0,93265.0,0.0646]
[1735724090956,0.053703,93283.0,93270.0,0.3608]
[1735724091161,0.3608,93285.0,93273.0,0.053709]
[1735724091472,0.07214943,93284.0,93273.0,0.053709]
[1735724091668,0.053703,93283.0,93273.0,0.053709]
[1735724091870,0.053705,93279.0,93270.0,0.3608]
[1735724095566,0.01843993,93284.0,93270.0,0.3608]
[1735724095772,0.01843993,93284.0,93276.0,0.053707]
[1735724097069,0.02043993,93284.0,93276.0,0.053707]
[1735724098073,0.02143993,93284.0,93276.0,0.053707]
[1735724098475,0.07514293,93284.0,93276.0,0.053707]
[1735724098682,0.01843993,93283.0,93276.0,0.053707]
[1735724098871,0.053704,93281.0,93276.0,0.053707]
[1735724100177,0.055704,93281.0,93276.0,0.053707]
[1735724100375,0.01843993,93280.0,93271.0,0.19309747]
[1735724100675,0.002,93281.0,93270.0,0.41451]
[1735724100676,0.053706,93277.0,93270.0,0.41451]
[1735724101868,0.01843993,93280.0,93271.0,0.05371]
[1735724102163,0.002,93281.0,93273.0,0.053708]
[1735724102365,0.002,93281.0,93270.0,0.3608]
[1735724102366,0.002,93281.0,93274.0,0.053708]
[1735724102575,0.01843993,93282.0,93270.0,0.47183005]
[1735724102776,0.053703,93283.0,93270.0,0.47183005]
[1735724103176,0.053704,93282.0,93275.0,0.053707]
[1735724103371,0.053704,93282.0,93270.0,0.3608]
[1735724103372,0.053705,93280.0,93270.0,0.3608]
[1735724103577,0.053705,93279.0,93270.0,0.41451]
[1735724105575,0.053707,93276.0,93270.0,0.3608]
[1735724105779,0.053708,93275.0,93270.0,0.3608]
[1735724106077,0.053708,93274.0,93270.0,0.3608]
[1735724109281,0.0657722,93274.0,93270.0,0.3608]
[1735724109475,0.01843993,93273.0,93270.0,0.3608]
[1735724110874,0.01843993,93273.0,93265.0,0.0646]
[1735724113284,0.01843993,93273.0,93262.0,0.3608]
[1735724113285,0.0120642,93274.0,93262.0,0.3608]
[1735724113581,0.052713,93265.0,93262.0,0.3108]
[1735724114284,0.052713,93265.0,93258.0,0.19309747]
[1735724114692,0.053713,93265.0,93253.0,0.0638]
[1735724115288,0.053713,93265.0,93262.0,0.002]
[1735724115691,0.07217345,93265.0,93262.0,0.00077211]
[1735724116277,0.053714,93264.0,93262.0,0.00077211]
[1735724116479,0.07217445,93264.0,93262.0,0.00077211]
[1735724116679,0.01846045,93263.0,93253.0,0.0678]
[1735724117285,0.01846045,93263.0,93256.0,0.053718]
[1735724117481,0.001,93264.0,93262.0,0.002]
[1735724117987,0.054714,93264.0,93262.0,0.002]
[1735724118191,0.053716,93261.0,93253.0,0.0638]
[1735724118389,0.3608,93257.0,93253.0,0.0638]
[1735724118691,0.01846045,93256.0,93253.0,0.0638]
[1735724120684,0.01946045,93256.0,93253.0,0.0638]
[1735724123683,0.001,93256.0,93253.0,0.0638]
[1735724124081,0.01938376,93256.0,93253.0,0.0638]
[1735724127083,0.01938376,93256.0,93254.0,0.053719]
[1735724127291,0.01938376,93256.0,93254.0,0.414519]
[1735724127495,0.3608,93274.0,93267.0,0.053712]
[1735724128297,0.01225769,93270.0,93267.0,0.053712]
[1735724129985,0.01225769,93270.0,93261.0,0.053715]
[1735724130184,0.3638,93268.0,93261.0,0.053715]
[1735724130389,0.3638,93268.0,93260.0,0.0618]
[1735724130682,0.053712,93267.0,93255.0,0.053719]
[1735724130893,0.053716,93261.0,93254.0,0.3608]
[1735724131795,0.3608,93257.0,93247.0,0.19309747]
[1735724132000,0.3608,93257.0,93232.0,0.3608]
[1735724132001,0.053721,93252.0,93241.0,0.0649]
[1735724132188,0.08267814,93256.0,93241.0,0.0649]
[1735724132391,0.01847814,93255.0,93241.0,0.0649]
[1735724133200,0.01847814,93255.0,93241.0,0.118627]
[1735724133496,0.053721,93252.0,93241.0,0.0649]
[1735724133801,0.01847814,93255.0,93241.0,0.0649]
[1735724133991,0.053722,93250.0,93241.0,0.0649]
[1735724134191,0.01847814,93253.0,93241.0,0.0649]
[1735724134395,0.02747814,93255.0,93242.0,0.3608]
[1735724134707,0.006,93252.0,93242.0,0.414526]
[1735724136189,0.003,93250.0,93242.0,0.414526]
[1735724136389,0.005,93250.0,93242.0,0.414526]
[1735724136593,0.005,93250.0,93242.0,0.3608]
[1735724136797,0.3608,93245.0,93235.0,0.053731]
[1735724137097,0.01859119,93244.0,93235.0,0.053731]
[1735724137298,0.3608,93245.0,93235.0,0.053731]
[1735724137599,0.01859156,93244.0,93235.0,0.053731]
[1735724137801,0.3608,93245.0,93235.0,0.053731]
[1735724138188,0.3608,93245.0,93233.0,0.1252]
[1735724138189,0.414526,93245.0,93233.0,0.1252]
[1735724138498,0.053727,93244.0,93233.0,0.0628]
[1735724138697,0.053727,93244.0,93232.0,0.0663]
[1735724144510,0.0723033,93244.0,93232.0,0.0663]
[1735724144899,0.0723033,93244.0,93223.0,0.0629]
[1735724144900,0.053731,93236.0,93223.0,0.0629]
[1735724145299,0.07226592,93236.0,93223.0,0.116638]
[1735724145498,0.053731,93236.0,93223.0,0.477438]
[1735724146100,0.3608,93228.0,93221.0,0.065]
[1735724146395,0.414536,93228.0,93224.0,0.00360878]
[1735724146909,0.3608,93228.0,93224.0,0.00360878]
[1735724148696,0.3618,93228.0,93224.0,0.00360878]
[1735724151316,0.01262018,93228.0,93224.0,0.00360878]
[1735724158703,0.03103344,93228.0,93224.0,0.00360878]
[1735724160619,0.03103344,93228.0,93226.0,0.053736]
[1735724160805,0.01262018,93228.0,93226.0,0.053736]
[1735724161314,0.01262018,93228.0,93224.0,0.00360878]
[1735724161618,0.053737,93225.0,93224.0,0.00360878]
[1735724161916,0.053737,93225.0,93224.0,0.00160878]
[1735724161917,0.052737,93225.0,93224.0,0.00160878]
[1735724162319,0.048737,93225.0,93224.0,0.00160878]
[1735724162722,0.048737,93225.0,93224.0,0.00260878]
[1735724162904,0.01841326,93227.0,93224.0,0.06034678]
[1735724163219,0.01162018,93228.0,93224.0,0.06034678]
[1735724163409,0.053735,93229.0,93224.0,0.00260878]
[1735724163603,0.053735,93229.0,93224.0,0.00560878]
[1735724165217,0.24985925,93232.0,93224.0,0.00560878]
[1735724165519,0.24985925,93232.0,93224.0,0.00260878]
[1735724165720,0.24985925,93232.0,93224.0,0.00360878]
[1735724165915,0.053735,93229.0,93224.0,0.00360878]
[1735724166111,0.053735,93229.0,93224.0,0.00160878]
[1735724168525,0.053735,93229.0,93224.0,0.00260878]
[1735724169217,0.053735,93229.0,93224.0,0.00160878]
[1735724169419,0.053735,93229.0,93224.0,0.00260878]
[1735724169817,0.053737,93226.0,93224.0,0.00260878]
[1735724171723,0.053737,93226.0,93224.0,0.00160878]
[1735724171929,0.053737,93226.0,93224.0,0.00260878]
[1735724172124,0.053737,93226.0,93224.0,0.00360878]
[1735724174120,0.053737,93226.0,93224.0,0.002]
[1735724174923,0.053735,93229.0,93224.0,0.002]
[1735724180129,0.01839476,93230.0,93224.0,0.002]
[1735724180320,0.053737,93226.0,93224.0,0.002]
[1735724181434,0.07213176,93226.0,93224.0,0.002]
[1735724181627,0.01839476,93225.0,93224.0,0.002]
[1735724184832,0.053737,93226.0,93224.0,0.002]
[1735724186238,0.053737,93226.0,93224.0,0.001]
[1735724186426,0.053737,93226.0,93224.0,0.002]
[1735724196842,0.053737,93225.0,93224.0,0.002]
[1735724197836,0.053737,93225.0,93217.0,0.414541]
[1735724198035,0.053737,93225.0,93224.0,0.002]
[1735724199242,0.053737,93225.0,93217.0,0.414541]
[1735724199243,0.054737,93225.0,93217.0,0.418541]
[1735724199440,0.01831922,93224.0,93217.0,0.418541]
[1735724200444,0.01831922,93224.0,93217.0,0.420541]
[1735724201338,0.01831922,93228.0,93217.0,0.416541]
[1735724201539,0.01831922,93228.0,93224.0,0.002]
[1735724203140,0.001,93224.0,93218.0,0.43348364]
[1735724204247,0.001,93224.0,93218.0,0.43548364]
[1735724204553,0.001,93224.0,93218.0,0.3628]
[1735724204848,0.07205422,93228.0,93224.0,0.002]
[1735724205239,0.07205422,93228.0,93221.0,5.058e-05]
[1735724205441,0.001,93224.0,93221.0,5.058e-05]
[1735724205950,0.01831922,93227.0,93221.0,5.058e-05]
[1735724206157,0.07205422,93228.0,93224.0,0.002]
[1735724207650,0.07205422,93228.0,93221.0,0.00405058]
[1735724208152,0.07205422,93228.0,93221.0,5.058e-05]
[1735724208341,0.07205422,93228.0,93224.0,0.002]
[1735724208751,0.07205422,93228.0,93226.0,0.3608]
[1735724211154,0.07205422,93228.0,93226.0,0.3618]
[1735724211454,0.07205422,93228.0,93226.0,0.001]
[1735724215155,0.07205422,93228.0,93202.0,0.3608]
[1735724215156,0.053743,93214.0,93213.0,0.2980787]
[1735724215343,0.053737,93226.0,93202.0,0.41455]
[1735724215344,0.3608,93220.0,93202.0,0.3608]
[1735724215543,0.05375,93203.0,93200.0,0.10160917]
[1735724216060,0.053751,93201.0,93200.0,0.10160917]
[1735724216248,0.052751,93201.0,93200.0,0.10160917]
[1735724216649,0.052751,93201.0,93200.0,0.1]
[1735724217057,0.052751,93201.0,93200.0,0.102]
[1735724217355,0.052751,93201.0,93181.0,0.19309747]
[1735724217356,0.05376,93185.0,93175.0,0.053765]
[1735724217549,0.3608,93182.0,93175.0,0.053765]
[1735724217951,0.3578,93182.0,93169.0,0.0617]
[1735724218261,0.053768,93172.0,93167.0,0.3608]
[1735724218454,0.11090563,93180.0,93167.0,0.3608]
[1735724218455,0.053768,93171.0,93167.0,0.3608]
[1735724218956,0.053768,93171.0,93162.0,0.053773]
[1735724219161,0.11090563,93180.0,93158.0,0.0617]
[1735724219358,0.3608,93166.0,93158.0,0.0617]
[1735724219555,0.053771,93167.0,93158.0,0.0617]
[1735724220156,0.3608,93173.0,93158.0,0.0617]
[1735724220357,0.414567,93173.0,93161.0,0.002]
[1735724220754,0.001,93167.0,93163.0,0.16467763]
[1735724220957,0.001,93167.0,93163.0,0.053772]
[1735724221248,0.3608,93173.0,93163.0,0.053772]
[1735724221563,0.3618,93173.0,93163.0,0.053772]